[Event "VIII Open Semana Santa 2024"]
[Site "San Vicente del Raspeig"]
[Date "2024.03.31"]
[Round "8.14"]
[White "Lamard, Guillaume"]
[Black "Niedbala, Bartlomiej"]
[Result "1/2-1/2"]
[ECO "E05"]
[WhiteElo "2483"]
[BlackElo "2388"]
[Annotator "RC"]
[PlyCount "133"]
[EventDate "2024.03.27"]
[EventType "swiss"]
[EventCountry "ESP"]
[SourceTitle "playchess.com"]
[Source "ChessBase"]
[SourceQuality "1"]
[TimeControl "5400+30"]

1. Nf3 {[%emt 0:00:08]} d5 {[%emt 0:00:06]} 2. g3 {[%emt 0:00:04]} Nf6 {[%emt 0:00:04]} 3. Bg2 {[%emt 0:00:05]} e6 {[%emt 0:00:03]} 4. O-O {[%emt 0:00:06]} Be7 {[%emt 0:00:02]} 5. c4 {[%emt 0:00:05]} O-O {[%emt 1:32:45]} 6. d4 {[%emt 0:00:03]} dxc4 {[%emt 0:00:00]} 7. Qc2 {[%emt 0:00:40]} a6 {[%emt 0:00:00]} 8. a4 {[%emt 0:00:03]} Bd7 {[%emt 0:00:00]} 9. Qxc4 {[%emt 0:05:38]} Bc6 {[%emt 0:00:00]} 10. Bg5 {[%emt 0:00:04]} Nbd7 {[%emt 0:00:00]} 11. Nc3 {[%emt 0:00:35]} a5 {[%emt 0:00:00]} 12. Rfd1 {[%emt 0:04:04]} h6 {[%emt 0:00:00]} 13. Bxf6 {[%emt 0:08:50]} Nxf6 {[%emt 0:00:00]} 14. e3 {[%emt 0:04:20]} Bxf3 {[%emt 0:00:00]} 15. Bxf3 {[%emt 0:00:08]} c6 {[%emt 0:00:00]} 16. h4 {[%emt 0:03:02]} Qb6 {[%emt 0:00:00]} 17. Qe2 {[%emt 0:03:58]} Rad8 {[%emt 0:00:00]} 18. Kg2 {[%emt 0:00:14]} Qc7 {[%emt 0:00:00]} 19. Rac1 {[%emt 0:02:05]} Qd6 {[%emt 0:00:00]} 20. Ne4 {[%emt 0:06:46]} Nxe4 {[%emt 0:00:00]} 21. Bxe4 {[%emt 0:00:03]} g6 {[%emt 0:00:00]} 22. h5 {[%emt 0:01:10]} g5 {[%emt 0:00:00]} 23. Bb1 {[%emt 0:02:45]} Kg7 {[%emt 0:00:00]} 24. Qc2 {[%emt 0:05:39]} f5 {[%emt 0:00:00]} 25. Ba2 {[%emt 0:02:13]} Rf6 {[%emt 0:00:00]} 26. e4 {[%emt 0:04:58]} fxe4 {[%emt 0:00:00]} 27. Qxe4 {[%emt 0:00:08]} Rdf8 {[%emt 0:00:00]} 28. Rd2 {[%emt 0:00:54]} Bd8 {[%emt 0:00:00]} 29. Rc5 {[%emt 0:03:46]} Bc7 {[%emt 0:00:00]} 30. Re5 {[%emt 0:01:29]} Kh8 {[%emt 0:06:51]} 31. Kh3 {[%emt 0:09:32]} Qd7 {[%emt 0:03:59]} 32. Rxe6 {[%emt 0:01:02]} Rxe6 {[%emt 0:00:44]} 33. Bxe6 {[%emt 0:00:29]} Qh7 {[%emt 0:00:04]} 34. Qg4 {[%emt 0:01:42]} Qg7 {[%emt 0:02:00]} 35. Kg2 {[%emt 0:02:54]} Qf6 {[%emt 0:00:10]} 36. Bb3 {[%emt 0:08:07]} Bb6 {[%emt 0:00:44]} 37. Bc2 {[%emt 0:03:40]} Re8 {[%emt 0:00:20]} 38. Qd7 {[%emt 0:01:23]} Re7 {[%emt 0:00:05]} 39. Qc8+ {[%emt 0:00:13]} Kg7 {[%emt 0:00:01]} 40. Bb3 {[%emt 0:00:18]} Qf8 {[%emt 0:00:02]} 41. Qg4 {[%emt 0:00:45]} Qf6 {[%emt 0:00:18]} 42. Rd3 {[%emt 0:00:41]} Qd6 {[%emt 0:01:04]} 43. Qf5 {[%emt 0:02:39]} Qf6 {[%emt 0:01:03]} 44. Qc8 {[%emt 0:00:07]} Qf8 {[%emt 0:00:06]} 45. Qg4 {[%emt 0:00:05]} Qe8 {[%emt 0:01:43]} 46. Qf5 {[%emt 0:00:52]} Ba7 {[%emt 0:00:43]} 47. Qxa5 {[%emt 0:05:56]} b5 {[%emt 0:00:23]} 48. axb5 {[%emt 0:01:10]} cxb5 {[%emt 0:00:04]} 49. Bd1 {[%emt 0:01:51]} Qd7 {[%emt 0:01:03]} 50. Qc3 {[%emt 0:02:00]} Qd5+ {[%emt 0:00:28]} 51. Bf3 {[%emt 0:00:14]} Qc4 {[%emt 0:00:01]} 52. Qd2 {[%emt 0:02:46]} Rd7 {[%emt 0:00:04]} 53. Qe2 {[%emt 0:00:31]} Bxd4 {[%emt 0:00:28]} 54. Qe4 {[%emt 0:00:40]} Kf8 {[%emt 0:00:54]} 55. Qg6 {[%emt 0:01:04]} Qc2 {[%emt 0:00:29]} 56. Kh3 {[%emt 0:02:03]} Qxf2 {[%emt 0:00:42]} 57. Bg2 {[%emt 0:00:29]} Ke7 {[%emt 0:00:49]} 58. Rf3 {[%emt 0:00:43]} g4+ {[%emt 0:00:29]} 59. Qxg4 {[%emt 0:00:26]} Qxb2 {[%emt 0:00:14]} 60. Qe4+ {[%emt 0:00:31]} Be5 {[%emt 0:00:39]} 61. Rf5 {[%emt 0:00:42]} Ke6 {[%emt 0:00:01]} 62. Qg4 {[%emt 0:00:33]} Ke7 {[%emt 0:00:39]} 63. Qe4 {[%emt 0:00:35]} Ke6 {[%emt 0:00:04]} 64. Qc6+ {[%emt 0:00:18]} Ke7 {[%emt 0:00:23]} 65. Bd5 {[%emt 0:00:38]} Bf6 {[%emt 0:01:26]} 66. Qe6+ {[%emt 0:00:13]} Kd8 {[%emt 0:00:01]} 67. Rxf6 {[%emt 0:00:29]} 1/2-1/2

[Event "VIII Open Semana Santa 2024"]
[Site "San Vicente del Raspeig"]
[Date "2024.03.31"]
[Round "8.16"]
[White "Solodovnichenko, Yuri"]
[Black "Cesar Maestre, Bernardo"]
[Result "1/2-1/2"]
[ECO "B23"]
[WhiteElo "2481"]
[BlackElo "2381"]
[Annotator "TA"]
[PlyCount "160"]
[EventDate "2024.03.27"]
[EventType "swiss"]
[EventCountry "ESP"]
[SourceTitle "playchess.com"]
[Source "ChessBase"]
[SourceQuality "1"]
[TimeControl "5400+30"]

{[%evp 9,160,6,0,0,0,0,0,-6,17,29,41,20,46,21,33,15,22,12,19,29,28,18,25,26,14,37,33,41,32,2,10,-9,-13,-20,-19,-4,0,0,0,0,0,0,0,0,0,0,0,0,0,0,13,0,0,0,0,0,0,0,0,0,0,0,0,0,0,0,0,0,0,0,0,-35,0,0,0,0,0,0,0,-85,0,0,0,0,0,0,0,0,0,0,0,0,0,0,0,0,0,0,0,0,0,0,0,0,0,0,0,0,0,0,0,0,0,0,0,0,0,0,0,0,0,0,0,0,0,0,0,0,0,0,0,0,0,0,0,0,0,0,0,0,0,0,0,0,0,0,0,0,0,0,0,0,0]} 1. e4 {[%emt 0:00:03]} c5 {[%emt 0:00:05]} 2. Nc3 {[%emt 0:00:16]} Nc6 {[%emt 0:02:11]} 3. Nge2 {[%emt 0:00:27]} Nd4 {[%emt 0:02:46]} 4. d3 {[%emt 0:00:36]} g6 {[%emt 0:01:16]} 5. Nxd4 {[%emt 0:00:05]} cxd4 {[%emt 0:00:12]} 6. Ne2 {[%emt 0:00:04]} Bg7 {[%emt 0:00:42]} 7. c3 {[%emt 0:00:06]} dxc3 {[%emt 0:00:40]} 8. Nxc3 {[%emt 0:00:04]} d6 {[%emt 0:01:12]} 9. d4 {[%emt 0:00:14]} Nf6 {[%emt 0:00:42]} 10. Bb5+ {[%emt 0:01:05]} Nd7 {[%emt 0:02:43]} 11. Be3 {[%emt 0:11:50]} a6 {[%emt 0:04:49]} 12. Be2 {[%emt 0:02:13]} b5 {[%emt 0:03:53][%cal Bb7b5,Bb5b4][%mdl 32]} 13. a4 {[%emt 0:02:44]} b4 {[%emt 0:00:36]} 14. Nd5 {[%emt 0:01:27]} Bb7 {[%emt 0:01:33]} 15. a5 {[%emt 0:05:38]} e6 {[%emt 0:09:45]} 16. Nxb4 {[%emt 0:02:23]} Bxe4 {[%emt 0:00:25]} 17. O-O {[%emt 0:03:14]} (17. Nxa6 $2 Bxg2 18. Rg1 Bb7 $19) 17... O-O {[%emt 0:02:57]} 18. Qa4 {[%emt 0:15:42]} (18. Bxa6 $5 Nb8 $8 19. Bd3 Bxd3 20. Qxd3 Rxa5 21. d5 Rxa1 22. Rxa1 $11) 18... Bb7 {[%emt 0:13:06]} 19. Nc6 {[%emt 0:01:07]} Qe8 {[%emt 0:00:31]} 20. Rfc1 {[%emt 0:01:45] [#]} Nc5 $1 {[%emt 0:06:06]} 21. Ne7+ {[%emt 0:05:41]} Qxe7 {[%emt 0:00:05]} 22. dxc5 {[%emt 0:00:04][%cal Bd4c5,Bc5c6][%mdl 32]} Bxb2 {[%emt 0:12:19]} 23. c6 {[%emt 0:11:16]} Bc8 {[%emt 0:03:37]} 24. Qb4 {[%emt 0:01:13]} Bxa1 {[%emt 0:05:41]} 25. Rxa1 {[%emt 0:00:05]} Re8 {[%emt 0:03:26]} 26. Bf3 {[%emt 0:09:23]} d5 {[%emt 0:03:03]} 27. Bc5 {[%emt 0:01:36]} Qc7 {[%emt 0:04:37]} 28. Qb6 {[%emt 0:00:38]} Qf4 {[%emt 0:00:46]} 29. Rb1 {[%emt 0:02:30]} Qc4 {[%emt 0:02:16]} 30. Rd1 {[%emt 0:05:05][%mdl 1024] White has compensation.} Qf4 {[%emt 0:00:52]} 31. Be3 {[%emt 0:03:09] This pair of bishops is nice.} Qd6 {[%emt 0:00:11] White must now prevent ...Rb8.} 32. Bc5 {[%emt 0:03:40]} Qf4 {[%emt 0:00:07] [#] aiming for ...Rb8.} 33. Qb2 {[%emt 0:03:33]} Qc7 {[%emt 0:01:10]} 34. Qf6 {[%emt 0:00:36]} Qxa5 {[%emt 0:02:57]} (34... Qxc6 $2 35. Bd4 e5 36. Qxc6 $18) 35. Bd4 {[%emt 0:01:31][%csl Gd4][%cal Rf6g7] The board is on fire.} e5 $1 {[%emt 0:00:05]} 36. Bxe5 {[%emt 0:01:17]} Rxe5 {[%emt 0:00:06]} 37. Qxe5 {[%emt 0:00:09]} Be6 {[%emt 0:00:24]} 38. h4 {[%emt 0:00:29][%cal Oh4h5]} Rc8 $1 {[%emt 0:01:28]} 39. Rc1 {[%emt 0:02:09]} Qc7 {[%emt 0:01:03]} 40. Qd4 {[%emt 0:00:12][%cal Oh4h5]} h5 {[%emt 0:00:53]} 41. Qc5 {[%emt 0:03:25]} Rb8 {[%emt 0:00:55]} 42. g3 {[%emt 0:00:50]} (42. Bxd5 $2 {too greedy.} Rb5 43. Qa3 Bxd5 $19 (43... Rxd5 $2 44. Qxa6 Kh7 45. Qa3 $19)) 42... Rb5 {[%emt 0:00:31]} 43. Qd4 {[%emt 0:00:17]} a5 {[%emt 0:00:57]} 44. Qd3 {[%emt 0:01:24]} (44. Kg2 $11 {keeps the balance.}) 44... Rb8 {[%emt 0:01:08]} (44... Qb6 $17 {And now ...Rc5 would win.} 45. Qc2 Rb4) 45. Bxd5 $11 {[%emt 0:01:08] The position is equal.} Rd8 {[%emt 0:01:35]} 46. Rc5 {[%emt 0:00:01]} Bxd5 {[%emt 0:02:39]} 47. Rxd5 {[%emt 0:00:01]} Rxd5 {[%emt 0:00:17]} 48. Qxd5 {[%emt 0:00:02][%mdl 4096] Endgame. Threatens to win with Qd7. KQ-KQ} Kf8 $1 {[%emt 0:00:07]} 49. Qe4 {[%emt 0:00:35]} Qd6 {[%emt 0:01:26]} 50. Qc4 {[%emt 0:00:44]} Qc7 $1 {[%emt 0:00:04]} ({But not} 50... Qb4 $2 51. Qxb4+ axb4 52. c7 $18) 51. Qe4 {[%emt 0:00:24]} Qd6 {[%emt 0:00:04]} 52. Qc4 {[%emt 0:01:08] c7 would now be deadly.} Qc7 $1 {[%emt 0:00:10]} ({Avoid the trap} 52... Qb4 $2 53. Qxb4+ axb4 54. c7 $18) 53. Qc5+ {[%emt 0:00:29]} Ke8 $1 {[%emt 0:00:07]} 54. Kh2 {[%emt 0:00:55]} f6 {[%emt 0:03:17]} 55. Qd5 {[%emt 0:00:35]} Ke7 {[%emt 0:00:47] Repels Qe6+} 56. Qc5+ {[%emt 0:00:33]} Ke6 {[%emt 0:00:19]} 57. Kg1 {[%emt 0:00:15]} a4 {[%emt 0:01:23]} 58. Qc4+ {[%emt 0:00:03]} Kd6 {[%emt 0:00:13]} 59. Qf4+ {[%emt 0:00:22]} Kxc6 {[%emt 0:00:13] ( -> ...Qxf4)} 60. Qxa4+ {[%emt 0:00:04]} Kd5 $1 {[%emt 0:00:29]} 61. Qe8 {[%emt 0:00:35]} Qg7 {[%emt 0:00:32]} 62. Kg2 {[%emt 0:00:20]} Kd6 {[%emt 0:02:04]} 63. f3 {[%emt 0:01:07]} Kd5 {[%emt 0:00:15]} 64. Kh3 {[%emt 0:00:29]} Kd6 {[%emt 0:00:07]} 65. Kg2 {[%emt 0:00:52]} Kd5 {[%emt 0:00:04]} 66. Kf1 {[%emt 0:00:21]} Kd6 {[%emt 0:00:04]} 67. Kg2 {[%emt 0:00:57]} Kd5 {[%emt 0:00:05]} 68. Qe4+ {[%emt 0:00:17]} Kd6 {[%emt 0:00:07]} 69. Qd4+ {[%emt 0:00:36]} Ke6 {[%emt 0:00:27]} 70. Qc4+ {[%emt 0:00:01]} Ke7 {[%emt 0:01:00]} 71. g4 {[%emt 0:00:10]} hxg4 {[%emt 0:00:47]} 72. fxg4 {[%emt 0:00:04]} f5 {[%emt 0:00:37]} 73. Qc7+ {[%emt 0:00:19]} Kf8 {[%emt 0:00:06]} 74. Qd8+ {[%emt 0:00:51]} Kf7 {[%emt 0:00:06]} 75. Qd7+ {[%emt 0:00:18]} Kg8 {[%emt 0:00:17]} 76. Qxg7+ {[%emt 0:00:20]} Kxg7 {[%emt 0:00:06]} 77. gxf5 {[%emt 0:00:01]} gxf5 {[%emt 0:00:08]} 78. Kf3 {[%emt 0:00:02]} Kh6 {[%emt 0:00:06]} 79. Kf4 {[%emt 0:00:01]} Kh5 {[%emt 0:00:06]} 80. Kxf5 {[%emt 0:00:02]} Kxh4 {[%emt 0:00:08] Weighted Error Value: White=0.06 (flawless) /Black=0.04 (flawless) .  Mistake:       	White=1     	Black=1      Inaccurate:     	White=2     	Black=2      OK:         	White=29    	Black=40     Best:        	---       	Black=6      Strong:       	---       	Black=7} 1/2-1/2

[Event "VIII Open Semana Santa 2024"]
[Site "San Vicente del Raspeig"]
[Date "2024.03.31"]
[Round "8.17"]
[White "Urazayev, Arystanbek"]
[Black "Hristodoulou, Panagiotis"]
[Result "1-0"]
[ECO "D43"]
[WhiteElo "2476"]
[BlackElo "2376"]
[Annotator "TA"]
[PlyCount "37"]
[EventDate "2024.03.27"]
[EventType "swiss"]
[EventCountry "ESP"]
[SourceTitle "playchess.com"]
[Source "ChessBase"]
[SourceQuality "1"]
[TimeControl "5400+30"]

{[%evp 14,37,16,19,4,14,20,12,37,26,18,0,0,0,8,22,47,0,2,0,0,0,280,-1872,-10,-24]} 1. d4 {[%emt 0:00:30]} d5 {[%emt 0:01:04]} 2. Nf3 {[%emt 0:00:00]} Nf6 {[%emt 0:00:16]} 3. c4 {[%emt 0:00:00]} e6 {[%emt 0:00:12]} 4. Nc3 {[%emt 0:00:00]} c6 {[%emt 0:00:32]} 5. Qd3 {[%emt 0:01:05]} dxc4 {[%emt 0:00:27]} 6. Qxc4 {[%emt 0:00:07]} b5 {[%emt 0:00:15]} 7. Qd3 {[%emt 0:00:05]} Nbd7 {[%emt 0:03:56]} 8. e4 {[%emt 0:00:18]} b4 {[%emt 0:05:52]} 9. Na4 {[%emt 0:00:08]} Qa5 {[%emt 0:02:45]} 10. b3 {[%emt 0:00:08]} c5 {[%emt 0:01:40]} 11. Be3 {[%emt 0:07:17]} Bb7 {[%emt 0:13:57]} 12. Nxc5 {[%emt 0:01:16]} Bxc5 {[%emt 0:30:32]} 13. dxc5 {[%emt 0:01:05] Hoping for Nd2.} Bxe4 {[%emt 0:00:17]} (13... Nxe4 14. Rc1 Bc6 15. Ng5 $14) 14. Qd6 {[%emt 0:03:04] [#] Strongly threatening c6.} Rc8 {[%emt 0:03:17][%cal Oc8c6]} 15. Nd2 {[%emt 0:16:28]} Rc6 $132 {[%emt 0:15:13][%mdl 2048] Black is not keeping still} ({Much worse is} 15... Nxc5 16. Nc4 (16. Rc1 $2 Nd3+ 17. Bxd3 Rxc1+ $19) 16... Nb7 17. Qd2 $14) 16. Nc4 {[%emt 0:00:34]} Qd8 {[%emt 0:01:28]} 17. Qd2 {[%emt 0:02:22] Nd6+ is the strong threat.} Nxc5 $2 {[%emt 0:01:53][%mdl 8192] [#]} (17... O-O $1 $11) 18. Qd3 $4 {[%emt 1:05:03][%mdl 8192]} Qd7 $2 (18... Nxd3+ $19 19. Bxd3 Bxd3 (19... Qxd3 $2 20. Rd1 $19)) 19. Qxd7+ {[%emt 0:00:00][%mdl 32768] Weighted Error Value: White=0.48/Black=0.92.  Loses game:     	---       	Black=1      Missed win:     	White=1     	Black=1      Inaccurate:     	White=1     	---        OK:         	White=6     	Black=4      Best:        	---       	Black=2     . Loss on time!?} 1-0

[Event "VIII Open Semana Santa 2024"]
[Site "San Vicente del Raspeig"]
[Date "2024.03.31"]
[Round "8.18"]
[White "Zylka, Stanislaw"]
[Black "Fernandez Guillen, Ernesto J."]
[Result "1-0"]
[ECO "D18"]
[WhiteElo "2401"]
[BlackElo "2471"]
[Annotator "TA"]
[PlyCount "73"]
[EventDate "2024.03.27"]
[EventType "swiss"]
[EventCountry "ESP"]
[SourceTitle "playchess.com"]
[Source "ChessBase"]
[SourceQuality "1"]
[TimeControl "5400+30"]

{[%evp 16,73,32,39,47,36,54,46,115,110,119,94,125,124,135,133,129,135,125,130,132,121,120,118,160,152,314,322,443,425,459,462,460,461,440,449,616,669,648,641,1058,1085,1088,1076,1072,994,1073,1067,945,1039,1060,1052,29976,29974,29977,29978,29975,29976,29985,29986]} 1. d4 {[%emt 0:00:04]} d5 {[%emt 0:06:03]} 2. c4 {[%emt 0:00:08]} c6 {[%emt 0:00:04]} 3. Nf3 {[%emt 0:00:32]} Nf6 {[%emt 0:00:05]} 4. Nc3 {[%emt 0:00:15]} dxc4 {[%emt 0:00:30]} 5. a4 {[%emt 0:02:35]} Bf5 {[%emt 0:01:31]} 6. e3 {[%emt 0:00:20][%cal Be2e3,Be3e4][%mdl 32]} e6 {[%emt 0:00:17][%cal Be7e6,Be6e5][%mdl 32]} 7. Bxc4 {[%emt 0:00:07]} Nbd7 {[%emt 0:00:44]} 8. O-O {[%emt 0:00:16]} Bd6 {[%emt 0:01:07]} 9. Qe2 {[%emt 0:04:30] e4 is the strong threat.} Bg4 {[%emt 0:02:34]} 10. e4 {[%emt 0:11:00] e5 would now be deadly.} e5 {[%emt 0:04:08]} 11. d5 {[%emt 0:00:05]} c5 {[%emt 0:03:24]} ({Black should play} 11... Qc7 $14) 12. h3 {[%emt 0:04:12]} Bh5 {[%emt 0:00:24]} 13. Qd3 {[%emt 0:00:57]} Bxf3 {[%emt 0:00:50]} 14. Qxf3 {[%emt 0:00:22]} O-O {[%emt 0:00:31]} 15. Bg5 {[%emt 0:00:58]} h6 {[%emt 0:04:15]} 16. Bh4 {[%emt 0:00:49]} a6 {[%emt 0:02:11]} 17. Rfd1 {[%emt 0:28:20]} g6 {[%emt 0:18:55]} 18. Rd3 {[%emt 0:11:18]} Kg7 {[%emt 0:02:50]} 19. Nd1 {[%emt 0:00:34][%cal Bc3d1,Bd1e3,Be3f5][%mdl 32] White is more active.} Qa5 {[%emt 0:01:44]} 20. Ne3 {[%emt 0:00:07]} b5 $2 {[%emt 0:11:42] [#]} (20... Rab8 $16) 21. Nf5+ $1 $18 {[%emt 0:18:09][%mdl 512]} gxf5 {[%emt 0:02:25] [#]} (21... Kg8 22. Nxd6) 22. Qxf5 {[%emt 0:00:07]} Be7 {[%emt 0:05:55]} 23. d6 {[%emt 0:00:04]} Bd8 {[%emt 0:00:09]} 24. Bd5 {[%emt 0:04:22]} ({Worse is} 24. Rg3+ Kh8 25. Bd5 Rb8 $11 (25... Nxd5 $2 26. Qg4 $18)) 24... Ra7 {[%emt 0:14:40] [#]} 25. Bc6 $1 {[%emt 0:00:27] A strong pair of Bishops.} Rg8 {[%emt 0:01:45]} 26. Bxd7 {[%emt 0:01:29]} Nxd7 {[%emt 0:01:07][%cal Bf6d7,Bd7f8,Bf8g6][%mdl 32]} 27. Be7 {[%emt 0:02:12] aiming for Rg3+.} (27. Rg3+ Kh8 28. Qxf7 Rxg3 29. fxg3 (29. Bxg3 Bf6 $16) 29... Bxh4 $18) 27... Nf8 {[%emt 0:11:43]} 28. Qf6+ {[%emt 0:01:33]} Kh7 {[%emt 0:00:10]} 29. Bxd8 {[%emt 0:02:07]} Qb4 {[%emt 0:00:57]} 30. Qf5+ {[%emt 0:01:02]} Ng6 {[%emt 0:00:56]} 31. Bb6 {[%emt 0:02:46]} c4 {[%emt 0:01:42]} 32. Rdd1 {[%emt 0:01:25]} Rb7 {[%emt 0:00:38] [#]} 33. d7 $1 {[%emt 0:00:16]} Rxb6 {[%emt 0:00:31]} (33... Qe7 34. d8=Q) 34. d8=Q {[%emt 0:00:12] White mates.} Rb7 {[%emt 0:00:20] [#]} 35. Rd7 $1 {[%emt 0:00:33]} Rxd7 {[%emt 0:00:17]} 36. Qdxd7 {[%emt 0:00:08]} Rg7 {[%emt 0:00:13] [#]} 37. Qdxf7 $1 {[%emt 0:00:40] White took control after the opening.   Weighted Error Value: White=0.02 (flawless) /Black=0.64.  Loses game:     	---       	Black=1      Mistake:       	---       	Black=1      Inaccurate:     	---       	Black=4      OK:         	White=7     	Black=7      Best:        	White=2     	---        Strong:       	White=1     	---        Brilliant:      	White=1     	---} 1-0

[Event "VIII Open Semana Santa 2024"]
[Site "San Vicente del Raspeig"]
[Date "2024.03.31"]
[Round "8.19"]
[White "Balajayeva, Khanim"]
[Black "Garriga Cazorla, Pere"]
[Result "0-1"]
[ECO "B51"]
[WhiteElo "2350"]
[BlackElo "2460"]
[Annotator "TA"]
[PlyCount "62"]
[EventDate "2024.03.27"]
[EventType "swiss"]
[EventCountry "ESP"]
[SourceTitle "playchess.com"]
[Source "ChessBase"]
[SourceQuality "1"]
[TimeControl "5400+30"]

{[%evp 9,62,19,20,18,16,0,0,0,0,0,11,0,5,10,3,10,6,8,10,10,10,4,18,0,17,21,31,33,19,-20,-16,-27,52,-16,-56,-68,-46,-131,-131,-179,-170,-232,-175,-236,-251,-206,-218,-650,-636,-683,-682,-29991,-29992,-29992,-29993]} 1. e4 {[%emt 0:00:02]} c5 {[%emt 0:04:29]} 2. Nf3 {[%emt 0:00:10]} d6 {[%emt 0:00:05]} 3. Bb5+ {[%emt 0:00:13]} Nd7 {[%emt 0:00:33]} 4. O-O {[%emt 0:00:14]} a6 {[%emt 0:00:17]} 5. Bd3 {[%emt 0:00:07]} Ngf6 {[%emt 0:01:29]} 6. Re1 {[%emt 0:00:18]} e6 {[%emt 0:01:01]} 7. Bf1 {[%emt 0:00:38]} b6 {[%emt 0:00:46]} 8. d4 {[%emt 0:00:29] The position is equal.} cxd4 {[%emt 0:00:30]} 9. Nxd4 {[%emt 0:00:06]} Bb7 {[%emt 0:00:15]} 10. Nd2 {[%emt 0:01:26]} Be7 {[%emt 0:01:54]} 11. c4 {[%emt 0:01:50]} O-O {[%emt 0:01:46]} 12. a3 {[%emt 0:01:00]} Rc8 {[%emt 0:03:10]} 13. b4 {[%emt 0:00:57]} Re8 {[%emt 0:00:58]} 14. Bb2 {[%emt 0:00:49]} Qc7 {[%emt 0:00:05]} 15. h3 {[%emt 0:09:50]} Qb8 {[%emt 0:02:13]} 16. Qb3 {[%emt 0:03:55]} Bd8 {[%emt 0:09:03]} 17. Rad1 {[%emt 0:01:24]} Bc7 {[%emt 0:00:47]} 18. f4 {[%emt 0:21:13]} Nf8 {[%emt 0:17:25]} 19. N4f3 {[%emt 0:07:13]} Nh5 {[%emt 0:02:50]} 20. f5 {[%emt 0:02:31]} h6 {[%emt 0:08:07]} (20... exf5 $11 21. exf5 Nd7) 21. g4 {[%emt 0:04:25]} (21. Be2 $14) 21... Nf4 $1 $11 {[%emt 0:03:23]} 22. Qe3 {[%emt 0:08:05]} e5 {[%emt 0:02:28]} 23. Nb1 {[%emt 0:00:45]} ({White should try} 23. h4 $15) 23... b5 $17 {[%emt 0:01:06]} 24. cxb5 {[%emt 0:01:46]} (24. c5 $17) 24... Ba8 {[%emt 0:03:30] aiming for ...d5.} 25. bxa6 {[%emt 0:08:21] [#]} (25. Qb3 $142) 25... d5 $1 $19 {[%emt 0:04:33] Strongly threatening ...Bb6.} 26. a7 {[%emt 0:02:46]} (26. Bxe5 $142 Bxe5 27. Nxe5 Qxe5 28. Qd4) 26... Qb7 {[%emt 0:00:27] ...Bb6 would now be deadly.} 27. Nxe5 {[%emt 0:00:20]} Rxe5 {[%emt 0:00:52]} 28. Qxf4 {[%emt 0:04:08]} (28. Bxe5 Bxe5 29. h4 (29. exd5 $2 Bc7 $19)) 28... Rxe4 {[%emt 0:00:52]} 29. Qd2 {[%emt 0:00:50]} Qxa7+ {[%emt 0:01:58]} 30. Kg2 {[%emt 0:03:05]} d4 {[%emt 0:03:39]} 31. Kf2 {[%emt 0:12:02]} d3+ {[%emt 0:00:34] Weighted Error Value: White=0.69/Black=0.06 (flawless) .  Mistake:       	White=6     	Black=1      Inaccurate:     	White=1     	---        OK:         	White=5     	Black=8      Best:        	White=1     	Black=3      Strong:       	---       	Black=1} 0-1